lending/lending_fUSD_20250808
["ID","MTS","AMOUNT","RATE_DAILY","PERIOD"]
[378010499,1754667036770,-485.03,0.00018498,2]
[378010500,1754667036779,-400.0,0.00018498,2]
[378010501,1754667036790,-4202.28,0.00018498,2]
[378010502,1754667036800,-400.0,0.00018498,2]
[378010503,1754667036809,-1584.17,0.00018498,2]
[378010504,1754667036819,-741.44,0.00018498,2]
[378010505,1754667036829,-1372.03,0.00018498,2]
[378010506,1754667036839,-457.12,0.00018498,2]
[378010507,1754667036850,-400.0,0.00018498,2]
[378010508,1754667036859,-6091.41,0.00018498,2]
[378010509,1754667036870,-807.23,0.00018498,2]
[378010510,1754667036881,-962.16,0.00018498,2]
[378010511,1754667036892,-400.0,0.00018498,2]
[378010512,1754667036903,-1759.63,0.00018498,2]
[378010513,1754667036913,-460.58,0.00018498,2]
[378010514,1754667036923,-400.0,0.00018498,2]
[378010515,1754667036933,-696.5,0.00018498,2]
[378010516,1754667036942,-5058.49,0.00018498,2]
[378010517,1754667036952,-3479.98,0.00018498,2]
[378010518,1754667036962,-427.54,0.00018498,2]
[378010519,1754667036972,-500.0,0.00018498,2]
[378010520,1754667036982,-831.32,0.00018498,2]
[378010521,1754667036996,-928.12,0.00018498,2]
[378010522,1754667037007,-444.07,0.00018498,2]
[378010523,1754667037016,-454.73,0.00018498,2]
[378010524,1754667037026,-680.92,0.00018498,2]
[378010525,1754667037039,-400.0,0.00018498,2]
[378010526,1754667037048,-572.96,0.00018498,2]
[378010527,1754667037058,-500.0,0.00018498,2]
[378010528,1754667037068,-400.0,0.00018498,2]
[378010529,1754667037079,-983.67,0.00018498,2]
[378010530,1754667037089,-400.0,0.00018498,2]
[378010531,1754667037099,-3547.41,0.00018498,2]
[378010532,1754667037109,-400.0,0.00018498,2]
[378010533,1754667037119,-400.0,0.00018498,2]
[378010534,1754667037129,-400.0,0.00018498,2]
[378010535,1754667037138,-921.66,0.00018498,2]
[378010536,1754667037147,-401.86027177,0.00018498,2]
[378010537,1754667037156,-400.0,0.00018498,2]
[378010538,1754667037166,-1306.28,0.00018498,2]
[378010539,1754667037176,-400.0,0.00018498,2]
[378010540,1754667037185,-465.87984955,0.00018498,2]
[378010541,1754667037194,-1535.66,0.00018498,2]
[378010542,1754667037204,-400.0,0.00018498,2]
[378010543,1754667037213,-618.14,0.00018498,2]
[378010544,1754667037223,-580.99,0.00018498,2]
[378010545,1754667037232,-400.0,0.00018498,2]
[378010546,1754667037242,-400.0,0.00018498,2]
[378010547,1754667037252,-1069.08,0.00018498,2]
[378010548,1754667037262,-727.28,0.00018498,2]
[378010549,1754667037272,-400.0,0.00018498,2]
[378010550,1754667037282,-400.0,0.00018498,2]
[378010551,1754667037291,-1902.48,0.00018498,2]
[378010552,1754667037301,-400.0,0.00018498,2]
[378010553,1754667037311,-400.0,0.00018498,2]
[378010554,1754667037320,-412.7495133,0.00018498,2]
[378010555,1754667037330,-418.75,0.00018498,2]
[378010556,1754667037339,-400.0,0.00018498,2]
[378010557,1754667037349,-1676.33,0.00018498,2]
[378010558,1754667037358,-999.48,0.00018498,2]
[378010559,1754667037367,-393.1812068,0.00018498,2]
[378010560,1754667037377,-400.0,0.00018498,2]
[378010561,1754667037387,-400.0,0.00018498,2]
[378010562,1754667037396,-1162.61,0.00018498,2]
[378010563,1754667037406,-416.24,0.00018498,2]
[378010564,1754667037415,-6309.07,0.00018498,2]
[378010565,1754667037425,-561.46,0.00018498,2]
[378010566,1754667037434,-400.0,0.00018498,2]
[378010567,1754667037444,-500.0,0.00018498,2]
[378010568,1754667037455,-987.74,0.00018498,2]
[378010569,1754667037467,-300.0,0.00018498,2]
[378010570,1754667037477,-636.86,0.00018498,2]
[378010571,1754667037487,-413.73870133,0.00018498,2]
[378010572,1754667037497,-400.0,0.00018498,2]
[378010573,1754667037509,-867.46,0.00018498,2]
[378010574,1754667037519,-4356.49,0.00018498,2]
[378010575,1754667037529,-400.0,0.00018498,2]
[378010576,1754667037539,-400.0,0.00018498,2]
[378010577,1754667037548,-400.0,0.00018498,2]
[378010578,1754667037558,-400.0,0.00018498,2]
[378010579,1754667037568,-500.0,0.00018498,2]
[378010580,1754667037577,-4162.93,0.00018498,2]
[378010581,1754667037587,-400.0,0.00018498,2]
[378010582,1754667037597,-400.0,0.00018498,2]
[378010583,1754667037607,-5660.47,0.00018498,2]
[378010584,1754667037616,-400.0,0.00018498,2]
[378010585,1754667037625,-400.0,0.00018499,2]
[378010586,1754667037634,-400.0,0.00018499,2]
[378010587,1754667037645,-400.0,0.00018499,2]
[378010588,1754667037655,-484.66,0.00018499,2]
[378010589,1754667037667,-400.0,0.00018499,2]
[378010590,1754667037677,-400.0,0.00018499,2]
[378010591,1754667037687,-400.0,0.00018499,2]
[378010592,1754667037697,-400.0,0.00018499,2]
[378010593,1754667037707,-400.0,0.00018499,2]
[378010594,1754667037716,-400.0,0.00018499,2]
[378010595,1754667037726,-400.0,0.00018499,2]
[378010596,1754667037736,-442.21,0.00018499,2]
[378010597,1754667037745,-460.79,0.00018499,2]
[378010598,1754667037755,-400.0,0.00018499,2]
[378010599,1754667037771,-830.82,0.00018499,2]
[378010600,1754667037780,-400.0,0.00018499,2]
[378010601,1754667037790,-400.0,0.00018499,2]
[378010602,1754667037799,-400.48,0.00018499,2]
[378010603,1754667037809,-424.0,0.00018499,2]
[378010604,1754667037818,-1689.17,0.00018499,2]
[378010605,1754667037828,-400.0,0.00018499,2]
[378010606,1754667037837,-400.0,0.00018499,2]
[378010607,1754667037847,-400.0,0.00018499,2]
[378010608,1754667037856,-179.47207707,0.00018499,2]
[378010609,1754667037866,-479.8809991,0.00018499,2]
[378010610,1754667037876,-400.0,0.00018499,2]
[378010611,1754667037886,-400.0,0.00018499,2]
[378010612,1754667037896,-476.08,0.00018499,2]
[378010613,1754667037906,-370.97089212,0.00018499,2]
[378010614,1754667037916,-400.0,0.00018499,2]
[378010615,1754667037926,-400.0,0.00018499,2]
[378010616,1754667037936,-400.0,0.00018499,2]
[378010617,1754667037945,-287.41301664,0.00018499,2]
[378010618,1754667037957,-400.0,0.00018499,2]
[378010619,1754667037967,-400.0,0.00018499,2]
[378010620,1754667037978,-400.0,0.00018499,2]
[378010621,1754667037988,-400.0,0.00018499,2]
[378010622,1754667037998,-400.0,0.00018499,2]
[378010623,1754667038009,-300.0,0.00018499,2]
[378010624,1754667038019,-400.0,0.00018499,2]
[378010625,1754667038028,-401.43,0.00018499,2]
[378010626,1754667038043,-554.19,0.00018499,2]
[378010627,1754667038052,-868.15,0.00018499,2]
[378010628,1754667038066,-400.0,0.00018499,2]
[378010629,1754667038085,-400.0,0.00018499,2]
[378010630,1754667038097,-400.0,0.00018499,2]
[378010631,1754667038107,-400.0,0.00018499,2]
[378010632,1754667038118,-400.0,0.00018499,2]
[378010633,1754667038127,-400.0,0.00018499,2]
[378010635,1754667038137,-400.0,0.00018499,2]
[378010636,1754667038147,-400.0,0.00018499,2]
[378010638,1754667038157,-400.0,0.00018499,2]
[378010640,1754667038167,-400.0,0.00018499,2]
[378010642,1754667038176,-400.0,0.00018499,2]
[378010643,1754667038186,-400.0,0.00018499,2]
[378010644,1754667038195,-500.0,0.00018499,2]
[378010645,1754667038205,-400.0,0.00018499,2]
[378010646,1754667038216,-446.89,0.00018499,2]
[378010647,1754667038226,-400.0,0.00018499,2]
[378010648,1754667038236,-400.0,0.00018499,2]
[378010649,1754667038245,-400.0,0.00018499,2]
[378010650,1754667038255,-407.51585598,0.00018499,2]
[378010651,1754667038265,-400.0,0.00018499,2]
[378010652,1754667038275,-400.0,0.00018499,2]
[378010653,1754667038285,-400.0,0.00018499,2]
[378010654,1754667038294,-538.42,0.00018499,2]
[378010655,1754667038305,-400.0,0.00018499,2]
[378010656,1754667038315,-400.0,0.00018499,2]
[378010657,1754667038324,-400.0,0.00018499,2]
[378010658,1754667038333,-400.0,0.00018499,2]
[378010659,1754667038343,-400.0,0.00018499,2]
[378010660,1754667038353,-400.0,0.00018499,2]
[378010661,1754667038362,-400.0,0.00018499,2]
[378010662,1754667038372,-494.21,0.00018499,2]
[378010663,1754667038382,-405.47,0.00018499,2]
[378010664,1754667038391,-400.0,0.00018499,2]
[378010665,1754667038400,-459.18,0.00018499,2]
[378010666,1754667038410,-407.89,0.00018499,2]
[378010667,1754667038419,-400.0,0.00018499,2]
[378010668,1754667038429,-400.0,0.00018499,2]
[378010669,1754667038439,-400.0,0.00018499,2]
[378010670,1754667038448,-400.0,0.00018499,2]
[378010671,1754667038458,-400.0,0.00018499,2]
[378010672,1754667038467,-400.0,0.00018499,2]
[378010673,1754667038552,-712.15,0.00018499,2]
[378010674,1754667038562,-400.0,0.00018499,2]
[378010675,1754667038571,-400.0,0.00018499,2]
[378010676,1754667038580,-400.0,0.00018499,2]
[378010677,1754667038589,-400.0,0.00018499,2]
[378010678,1754667038598,-18.10865359,0.00018499,2]
[378010679,1754667038613,-1518.11134641,0.00018499,2]
[378010681,1754667038623,-400.0,0.00018499,2]
[378010683,1754667038632,-400.0,0.00018499,2]
[378010685,1754667038642,-400.0,0.00018499,2]
[378010687,1754667038651,-400.0,0.00018499,2]
[378010689,1754667038660,-400.0,0.00018499,2]
[378010691,1754667038670,-443.51,0.00018499,2]
[378010693,1754667038679,-400.0,0.00018499,2]
[378010695,1754667038688,-400.0,0.00018499,2]
[378010697,1754667038697,-400.0,0.00018499,2]
[378010698,1754667038706,-517.99,0.00018499,2]
[378010700,1754667038715,-400.0,0.00018499,2]
[378010702,1754667038725,-400.0,0.00018499,2]
[378010704,1754667038734,-400.0,0.00018499,2]
[378010706,1754667038743,-1510.0,0.00018499,2]
[378010708,1754667038752,-400.0,0.00018499,2]
[378010710,1754667038763,-400.0,0.00018499,2]
[378010712,1754667038772,-400.0,0.00018499,2]
[378010714,1754667038786,-400.0,0.00018499,2]
[378010716,1754667038795,-437.55,0.00018499,2]
[378010718,1754667038804,-400.0,0.00018499,2]
[378010720,1754667038813,-400.0,0.00018499,2]
[378010722,1754667038823,-400.0,0.00018499,2]
[378010724,1754667038832,-400.0,0.00018499,2]
[378010726,1754667038842,-400.0,0.00018499,2]
[378010728,1754667038851,-400.0,0.00018499,2]
[378010730,1754667038860,-400.0,0.00018499,2]
[378010731,1754667038869,-479.76,0.00018499,2]
[378010732,1754667038879,-627.97,0.00018499,2]
[378010733,1754667038890,-400.0,0.00018499,2]
[378010734,1754667038899,-1071.12,0.00018499,2]
[378010735,1754667038909,-400.0,0.00018499,2]
[378010736,1754667038920,-575.61,0.00018499,2]
[378010737,1754667038929,-400.0,0.00018499,2]
[378010739,1754667038938,-1253.71705359,0.00018499,2]
[378010741,1754667038951,-459.16294641,0.00018499,2]
[378010742,1754667038960,-400.0,0.00018499,2]
[378010743,1754667038970,-1517.33,0.00018499,2]
[378010744,1754667038979,-400.0,0.00018499,2]
[378010745,1754667038989,-1532.82,0.00018499,2]
[378010746,1754667038999,-23.43982481,0.00018499,2]
[378010750,1754667040208,-952.65017519,0.00018499,2]
[378010751,1754667040218,-693.1,0.00018499,2]
[378010752,1754667040228,-400.0,0.00018499,2]
[378010753,1754667040237,-400.0,0.00018499,2]
[378010754,1754667040247,-1239.26,0.00018499,2]
[378010755,1754667040257,-1651.2,0.00018499,2]
[378010756,1754667040268,-1469.76,0.00018499,2]
[378010757,1754667040277,-400.0,0.00018499,2]
[378010758,1754667040287,-723.58,0.00018499,2]
[378010759,1754667040297,-774.0,0.00018499,2]
[378010760,1754667040306,-400.0,0.00018499,2]
[378010761,1754667040316,-400.0,0.00018499,2]
[378010762,1754667040325,-840.4,0.00018499,2]
[378010763,1754667040335,-478.05,0.00018499,2]
[378010764,1754667040344,-1378.2,0.00018499,2]
[378010765,1754667040354,-1132.34,0.00018499,2]
[378010766,1754667040363,-550.6,0.00018499,2]
[378010768,1754667040372,-606.96,0.00018499,2]
[378010769,1754667040382,-400.0,0.00018499,2]
[378010770,1754667040391,-547.1,0.00018499,2]
[378010771,1754667040400,-1274.48,0.00018499,2]
[378010772,1754667040409,-400.0,0.00018499,2]
[378010773,1754667040419,-400.0,0.00018499,2]
[378010774,1754667040428,-400.0,0.00018499,2]
[378010775,1754667040437,-3375.1,0.00018499,2]
[378010776,1754667040446,-400.0,0.00018499,2]
[378010777,1754667040455,-1240.21,0.00018499,2]
[378010778,1754667040464,-1407.34,0.00018499,2]
[378010779,1754667040473,-4182.72,0.00018499,2]
[378010780,1754667040483,-400.0,0.00018499,2]
[378010781,1754667040492,-400.0,0.00018499,2]
[378010782,1754667040501,-680.25,0.00018499,2]
[378010783,1754667040512,-500.0,0.00018499,2]
[378010784,1754667040521,-1594.11,0.00018499,2]
[378010785,1754667040532,-400.0,0.00018499,2]
[378010786,1754667040544,-438.41134059,0.00018499,2]
[378010787,1754667040562,-13183.03865941,0.00018499,2]
[378010788,1754667040575,-400.0,0.00018499,2]
[378010789,1754667040586,-1606.34,0.00018499,2]
[378010790,1754667040596,-469.04,0.00018499,2]
[378010791,1754667040607,-1248.06,0.00018499,2]
[378010792,1754667040619,-400.0,0.00018499,2]
[378010793,1754667040628,-477.4,0.00018499,2]
[378010794,1754667040637,-959.54,0.00018499,2]
[378010795,1754667040646,-400.0,0.00018499,2]
[378010796,1754667040655,-480.19,0.00018499,2]
[378010797,1754667040665,-700.0,0.000185,6]
[378010798,1754667040674,-8818.89134059,0.00018515,2]
[378010799,1754667040685,-1740.71136449,0.00018515,2]
[378010800,1754667040694,-150.0,0.0001852,2]
[378010801,1754667040703,-2693.91,0.00018533,2]
[378010802,1754667040713,-5813.33,0.00018533,2]
[378010803,1754667040722,-999.99,0.00018533,2]
[378010804,1754667040731,-5081.46690781,0.00018533,2]
[378010805,1754667040755,-1165.164,0.00018533,2]
[378010806,1754667041556,-196.95706604,0.00018496,2]
[378010807,1754667041566,-248.57373396,0.00018497,2]
[378010808,1754667041577,-151.42626604,0.00018497,2]
[378010809,1754667041586,-537.28,0.00018497,2]
[378010810,1754667041596,-400.0,0.00018497,2]
[378010811,1754667041606,-400.0,0.00018498,2]
[378010812,1754667041615,-400.0,0.00018498,2]
[378010813,1754667041626,-853.03,0.00018498,2]
[378010814,1754667041636,-400.0,0.00018498,2]
[378010815,1754667041646,-1569.63266396,0.00018533,2]
[378010816,1754667041671,-2183.72642823,0.00018533,2]
[378010817,1754667041681,-150.99,0.00018533,2]
[378010818,1754667041692,-9999.99,0.00018533,2]
[378010819,1754667041701,-2570.48,0.00018533,2]
[378010820,1754667041710,-520.0,0.00018547,2]
[378010821,1754667041719,-3219.30679209,0.00018552,2]
[378010822,1754667041729,-283.62507777,0.00018572,2]
[378010823,1754667041738,-2007.71051108,0.00018581,2]
[378010824,1754667041748,-1100.0,0.000186,6]
[378010825,1754667041758,-3219.30679209,0.00018629,2]
[378010826,1754667041769,-400.0,0.00018651,2]
[378010827,1754667041779,-400.0,0.00018651,2]
[378010828,1754667041788,-400.0,0.00018651,2]
[378010829,1754667041798,-400.0,0.00018651,2]
[378010830,1754667041808,-526.86,0.00018651,2]
[378010831,1754667041817,-185.36634962,0.00018651,2]
[378010832,1754667041827,-400.0,0.00018651,2]
[378010833,1754667041836,-400.0,0.00018651,2]
[378010834,1754667041846,-400.0,0.00018651,2]
[378010835,1754667041855,-400.0,0.00018651,2]
[378010836,1754667041865,-400.0,0.00018651,2]
[378010837,1754667041875,-811.98,0.00018651,2]
[378010838,1754667041885,-482.72,0.00018651,2]
[378010839,1754667041894,-400.0,0.00018651,2]
[378010840,1754667041904,-462.3051032,0.00018651,2]
[378010841,1754667041913,-400.0,0.00018651,2]
[378010842,1754667041923,-400.0,0.00018651,2]
[378010843,1754667041933,-400.0,0.00018651,2]
[378010844,1754667041942,-400.0,0.00018651,2]
[378010845,1754667041952,-400.0,0.00018651,2]
[378010846,1754667041962,-454.47,0.00018651,2]
[378010847,1754667041971,-400.0,0.00018651,2]
[378010848,1754667041980,-436.67,0.00018651,2]
[378010849,1754667041990,-400.0,0.00018651,2]
[378010850,1754667041999,-480.57,0.00018651,2]
[378010851,1754667042009,-400.0,0.00018651,2]
[378010852,1754667042020,-400.0,0.00018651,2]
[378010853,1754667042030,-400.0,0.00018651,2]
[378010854,1754667042045,-497.81568212,0.00018651,2]
[378010855,1754667042062,-400.0,0.00018651,2]
[378010856,1754667042072,-555.95,0.00018651,2]
[378010857,1754667042081,-400.0,0.00018651,2]
[378010858,1754667042091,-669.82,0.00018651,2]
[378010859,1754667042100,-400.0,0.00018651,2]
[378010860,1754667042109,-400.0,0.00018651,2]
[378010861,1754667042119,-400.0,0.00018651,2]
[378010862,1754667042129,-526.77,0.00018651,2]
[378010863,1754667042139,-400.0,0.00018651,2]
[378010864,1754667042149,-400.0,0.00018651,2]
[378010865,1754667042158,-400.0,0.00018651,2]
[378010866,1754667042167,-400.0,0.00018651,2]
[378010867,1754667042176,-400.0,0.00018651,2]
[378010868,1754667042186,-675.36,0.00018651,2]
[378010869,1754667042195,-400.0,0.00018651,2]
[378010870,1754667042205,-400.0,0.00018651,2]
[378010871,1754667042218,-400.0,0.00018651,2]
[378010872,1754667042227,-400.0,0.00018651,2]
[378010873,1754667042236,-400.0,0.00018651,2]
[378010874,1754667042246,-400.0,0.00018651,2]
[378010875,1754667042255,-400.0,0.00018651,2]
[378010876,1754667042265,-400.0,0.00018651,2]
[378010877,1754667042274,-400.0,0.00018651,2]
[378010878,1754667042284,-400.0,0.00018651,2]
[378010879,1754667042293,-400.0,0.00018651,2]
[378010880,1754667042303,-400.0,0.00018651,2]
[378010881,1754667042312,-400.0,0.00018651,2]
[378010882,1754667042321,-400.0,0.00018651,2]
[378010883,1754667042331,-400.0,0.00018651,2]
[378010884,1754667042340,-463.73,0.00018651,2]
[378010885,1754667042350,-233.1271891,0.00018651,2]
[378010886,1754667042359,-400.0,0.00018651,2]
[378010887,1754667042368,-400.0,0.00018651,2]
[378010888,1754667042378,-400.0,0.00018651,2]
[378010889,1754667042388,-513.57,0.00018651,2]
[378010890,1754667042397,-400.0,0.00018651,2]
[378010891,1754667042406,-400.0,0.00018651,2]
[378010892,1754667042415,-400.0,0.00018651,2]
[378010893,1754667042424,-400.0,0.00018651,2]
[378010894,1754667042434,-400.0,0.00018651,2]
[378010895,1754667042443,-400.0,0.00018651,2]
[378010896,1754667042452,-400.0,0.00018651,2]
[378010897,1754667042461,-436.73,0.00018651,2]
[378010898,1754667042471,-400.0,0.00018651,2]
[378010899,1754667042480,-400.0,0.00018651,2]
[378010900,1754667042489,-1249.41,0.00018651,2]
[378010901,1754667042498,-400.0,0.00018651,2]
[378010902,1754667042507,-400.0,0.00018651,2]
[378010903,1754667042517,-400.0,0.00018651,2]
[378010904,1754667042527,-502.6,0.00018651,2]
[378010905,1754667042536,-400.0,0.00018651,2]
[378010906,1754667042546,-400.0,0.00018651,2]
[378010907,1754667042556,-562.12,0.00018651,2]
[378010908,1754667042565,-400.0,0.00018651,2]
[378010909,1754667042575,-400.0,0.00018651,2]
[378010910,1754667042586,-400.0,0.00018651,2]
[378010911,1754667042595,-400.0,0.00018651,2]
[378010912,1754667042605,-400.0,0.00018651,2]
[378010913,1754667042615,-400.0,0.00018651,2]
[378010914,1754667042625,-400.0,0.00018651,2]
[378010915,1754667042635,-400.0,0.00018651,2]
[378010916,1754667042645,-400.0,0.00018651,2]
[378010917,1754667042655,-400.0,0.00018651,2]
[378010918,1754667042665,-400.0,0.00018651,2]
[378010919,1754667042675,-400.0,0.00018651,2]
[378010920,1754667042685,-400.0,0.00018651,2]
[378010921,1754667042695,-844.49,0.00018651,2]
[378010922,1754667042705,-400.0,0.00018651,2]
[378010923,1754667042715,-400.0,0.00018651,2]
[378010924,1754667042725,-400.0,0.00018651,2]
[378010925,1754667042735,-178.21754399,0.00018651,2]
[378010926,1754667042745,-400.0,0.00018651,2]
[378010927,1754667042754,-400.0,0.00018651,2]
[378010928,1754667042767,-400.0,0.00018651,2]
[378010929,1754667042776,-400.0,0.00018651,2]
[378010930,1754667042786,-400.0,0.00018651,2]
[378010931,1754667042796,-400.0,0.00018651,2]
[378010932,1754667042806,-237.86300373,0.00018651,2]
[378010933,1754667042816,-400.0,0.00018651,2]
[378010934,1754667042827,-400.0,0.00018651,2]
[378010935,1754667042837,-400.0,0.00018651,2]
[378010936,1754667042848,-400.0,0.00018651,2]
[378010937,1754667042858,-400.0,0.00018651,2]
[378010938,1754667042868,-400.0,0.00018651,2]
[378010939,1754667042877,-400.0,0.00018651,2]
[378010940,1754667042887,-400.0,0.00018651,2]
[378010941,1754667042897,-400.0,0.00018651,2]
[378010942,1754667042907,-400.0,0.00018651,2]
[378010943,1754667042916,-460.91,0.00018651,2]
[378010944,1754667042926,-400.0,0.00018651,2]
[378010945,1754667042936,-400.0,0.00018651,2]
[378010946,1754667042947,-400.0,0.00018651,2]
[378010947,1754667042957,-400.0,0.00018651,2]
[378010948,1754667042966,-400.0,0.00018651,2]
[378010949,1754667042976,-400.0,0.00018651,2]
[378010950,1754667042986,-400.0,0.00018651,2]
[378010951,1754667042997,-400.0,0.00018651,2]
[378010952,1754667043007,-428.31,0.00018651,2]
[378010953,1754667043018,-400.0,0.00018651,2]
[378010954,1754667043028,-400.0,0.00018651,2]
[378010955,1754667043040,-400.0,0.00018651,2]
[378010956,1754667043050,-400.0,0.00018651,2]
[378010957,1754667043060,-518.4,0.00018651,2]
[378010958,1754667043070,-400.0,0.00018651,2]
[378010959,1754667043080,-400.0,0.00018651,2]
[378010961,1754667043091,-400.0,0.00018651,2]
[378010962,1754667043101,-400.0,0.00018651,2]
[378010963,1754667043111,-494.39728174,0.00018651,2]
[378010964,1754667043123,-400.0,0.00018651,2]
[378010965,1754667043133,-400.0,0.00018651,2]
[378010966,1754667043143,-400.0,0.00018651,2]
[378010967,1754667043152,-400.0,0.00018651,2]
[378010968,1754667043163,-400.0,0.00018651,2]
[378010969,1754667043172,-400.0,0.00018651,2]
[378010970,1754667043182,-400.0,0.00018651,2]
[378010971,1754667043193,-400.0,0.00018651,2]
[378010972,1754667043203,-400.0,0.00018651,2]
[378010973,1754667043213,-400.0,0.00018651,2]
[378010974,1754667043223,-402.64,0.00018651,2]
[378010975,1754667043232,-400.0,0.00018651,2]
[378010976,1754667043242,-429.33,0.00018651,2]
[378010977,1754667043252,-400.0,0.00018651,2]
[378010978,1754667043263,-400.0,0.00018651,2]
[378010979,1754667043272,-524.73,0.00018651,2]
[378010980,1754667043282,-400.0,0.00018651,2]
[378010981,1754667043292,-414.63,0.00018651,2]
[378010982,1754667043302,-400.0,0.00018651,2]
[378010983,1754667043312,-400.0,0.00018651,2]
[378010984,1754667043322,-400.0,0.00018651,2]
[378010985,1754667043332,-400.0,0.00018651,2]
[378010986,1754667043342,-400.0,0.00018651,2]
[378010987,1754667043352,-400.0,0.00018651,2]
[378010988,1754667043361,-400.0,0.00018651,2]
[378010989,1754667043372,-400.0,0.00018651,2]
[378010990,1754667043382,-400.0,0.00018651,2]
[378010991,1754667043392,-409.07478731,0.00018651,2]
[378010992,1754667043402,-546.46134028,0.00018651,2]
[378010993,1754667043413,-400.0,0.00018651,2]
[378010994,1754667043423,-400.0,0.00018651,2]
[378010995,1754667043433,-400.0,0.00018651,2]
[378010996,1754667043444,-400.0,0.00018651,2]
[378010997,1754667043454,-400.0,0.00018651,2]
[378010998,1754667043464,-447.5,0.00018651,2]
[378010999,1754667043474,-400.0,0.00018651,2]
[378011000,1754667043483,-567.27,0.00018651,2]
[378011001,1754667043494,-400.0,0.00018651,2]
[378011002,1754667043503,-400.0,0.00018651,2]
[378011003,1754667043513,-400.0,0.00018651,2]
[378011004,1754667043523,-400.0,0.00018651,2]
[378011005,1754667043532,-400.0,0.00018651,2]
[378011006,1754667043542,-400.0,0.00018651,2]
[378011007,1754667043552,-400.0,0.00018651,2]
[378011008,1754667043562,-469.99,0.00018651,2]
[378011009,1754667043573,-400.0,0.00018651,2]
[378011010,1754667043586,-400.0,0.00018651,2]
[378011011,1754667043597,-386.72021106,0.00018651,2]
[378011012,1754667043607,-400.0,0.00018651,2]
[378011013,1754667043618,-400.0,0.00018651,2]
[378011014,1754667043629,-400.0,0.00018651,2]
[378011015,1754667043640,-400.0,0.00018651,2]
[378011016,1754667043651,-400.0,0.00018651,2]
[378011017,1754667043661,-479.1,0.00018651,2]
[378011018,1754667043673,-400.0,0.00018651,2]
[378011019,1754667043683,-400.0,0.00018651,2]
[378011020,1754667043692,-400.0,0.00018651,2]
[378011021,1754667043702,-400.0,0.00018651,2]
[378011022,1754667043712,-400.0,0.00018651,2]
[378011023,1754667043724,-472.2,0.00018651,2]
[378011024,1754667043736,-400.0,0.00018651,2]
[378011025,1754667043746,-400.0,0.00018651,2]
[378011026,1754667043756,-400.0,0.00018651,2]
[378011027,1754667043766,-400.0,0.00018651,2]
[378011028,1754667043776,-400.0,0.00018651,2]
[378011029,1754667043786,-400.0,0.00018651,2]
[378011030,1754667043795,-400.0,0.00018651,2]
[378011031,1754667043805,-400.0,0.00018651,2]
[378011032,1754667043815,-500.38,0.00018651,2]
[378011033,1754667043826,-400.0,0.00018651,2]
[378011034,1754667043838,-595.5,0.00018651,2]